Cogmind - Beta 10.1 @@@ ROGUE MODE // 2020.09.23 @ 21:37:00 // Halloween2019/Abominations Player: HOTSOUP Result: Destroyed by Lesser Abomination with EMP Blaster Performance ------------- Evolutions (1) 500 Regions Visited (2) 400 Robots Destroyed (18) 90 Value Destroyed (814) 814 Prototype IDs (4) 80 Alien Tech Used (0) 0 Bonus (0) 0 TOTAL SCORE: 1884 Bonus ------- None Cogmind --------- Core Integrity 0/400 Matter 162/300 Energy 100/100 System Corruption 2% Temperature Cool (4) Movement Core (100) Ox1 Location -9/Materials Parts ------- > --- POWER (1) -------- (None) > --- PROPULSION (3) --- (None) > --- UTILITY (2) ------ Signal Interpreter > --- WEAPON (3) ------- Hammer Hammer > --- INVENTORY (4) ---- Ion Engine Plasma Cutter Peak State ------------ > --- POWER ------------ (None) > --- PROPULSION ------- Backup Propulsion I > --- UTILITY ---------- Sensor Array Signal Interpreter > --- WEAPON ----------- Rocket Launcher Rocket Launcher Hammer > --- INVENTORY -------- Ion Engine Plasma Cutter Hammer [Rating: 8] Favorites ----------- Power Backup Power I Engine Backup Power I Propulsion Backup Propulsion I Hover Unit Backup Propulsion I Flight Unit Flight Unit Utility Sensor Array Device Sensor Array Processor Signal Interpreter Weapon Rocket Launcher Energy Gun Backup Laser I Launcher Rocket Launcher Impact Weapon Hammer Build | -11 -10 -9 ------- Run | Scr Mat Mat Slots Evolved 2 | . . 2 Power . | . . . Propulsion 1 | . . 1 Utility . | . . . Weapon 1 | . . 1 Parts Attached 10 | . 7 3 Power 1 | . 1 . Engine 1 | . 1 . Core . | . . . Reactor . | . . . Propulsion 1 | . 1 . Treads . | . . . Leg . | . . . Wheel . | . . . Hover . | . . . Flight 1 | . 1 . Utility 2 | . 2 . Device 1 | . 1 . Storage . | . . . Processor 1 | . 1 . Hackware . | . . . Protection . | . . . Artifact . | . . . Weapon 6 | . 3 3 Energy Gun 1 | . 1 . Energy Cannon . | . . . Ballistic Gun . | . . . Ballistic Cannon . | . . . Launcher 2 | . . 2 Special Weapon . | . . . Impact Weapon 3 | . 2 1 Slashing Weapon . | . . . Piercing Weapon . | . . . Special Melee Weapon . | . . . Unidentified Prototypes . | . . . Parts Lost 9 | . 5 4 Power 1 | . 1 . Propulsion 3 | . 2 1 Utility 1 | . . 1 Weapon 4 | . 2 2 Highest Loss Streak 4 | . 2 4 Average Slot Usage (%) 69 | . 81 59 Engine 5 | . 11 . Hover 15 | . 23 9 Device 11 | . 13 10 Processor 8 | . 5 11 Energy Gun 9 | . 21 . Launcher 8 | . . 16 Impact Weapon 8 | . 3 12 Naked Turns 11 | . 11 . Heaviest Build 11 | . 7 11 Greatest Support 12 | 3 12 6 Greatest Overweight (x) 3 | . 1 3 Average Overweight (x) . | . . . Largest Inventory Capacity 4 | 4 4 4 Average Capacity 4 | 4 4 4 Most Carried 4 | 2 4 3 Average Carried 1 | . 3 2 Final Capacity 4 | 4 4 4 Final Carried 2 | 2 1 2 Class Distribution -------------------- 100% | Mutant Dominant Class ---------------- Mutant | -10/Materials Mutant | -9/Materials Resources | -11 -10 -9 ----------- Run | Scr Mat Mat Matter Collected 565 | 55 166 344 Remotely . | . . . Salvage Created 434 | . 136 298 Parts 26 | . 5 21 Haulers Intercepted . | . . . Recyclers Shooed 1 | . 1 . Parts Field Recycled . | . . . Retrieved Matter . | . . . Parts Self-Destructed . | . . . Prevented . | . . . Kills | -11 -10 -9 ------- Run | Scr Mat Mat Combat Hostiles Destroyed 11 | . 1 10 Guns 1 | . 1 . AOE 10 | . . 10 Classes Destroyed 6 | . 2 4 Worker 1 | . . 1 Recycler 1 | . 1 . Mechanic 1 | . . 1 Grunt 1 | . . 1 Abomination 10 | . 1 9 Anomaly 4 | . . 4 Best Kill Streak 7 | . 1 7 Combat Bots Only 3 | . 1 3 Max Kills in Single Turn 3 | . 1 3 Gunslinging . | . . . Exploded 1 | . . 1 Melee . | . . . Uniques/NPCs Destroyed . | . . . Combat | -11 -10 -9 -------- Run | Scr Mat Mat Damage Taken 1119 | . 214 905 Core 481 | . 71 410 Absorbed by Shields . | . . . Core Remaining (%) 85 | 100 71 . Volleys Fired 35 | . 14 21 Largest 2 | . 2 2 Hottest 66 | . 60 66 Shots Fired 69 | . 28 41 Gun 28 | . 28 . Cannon . | . . . Launcher 41 | . . 41 Special . | . . . Kinetic . | . . . Thermal 28 | . 28 . Explosive 41 | . . 41 Electromagnetic . | . . . Robot Hit Streak 9 | . 6 9 Robot Miss Streak 4 | . 2 4 Penetration Max . | . . . Secondary Targets . | . . . Shots Hit Robots 49 | . 18 31 Core Hits 44 | . 4 40 Critical Hits . | . . . Critical Kills . | . . . Critical Parts Destroyed . | . . . Melee Attacks 25 | . 23 2 Impact 25 | . 23 2 Slashing . | . . . Piercing . | . . . Sneak Attacks 1 | . . 1 Combat Hostiles . | . . . Follow-up Attacks . | . . . Damage Inflicted 2336 | . 154 2182 Guns 154 | . 154 . Cannons . | . . . Explosions 2106 | . . 2106 Melee 69 | . . 69 Ramming 7 | . . 7 Kinetic . | . . . Thermal 154 | . 154 . Explosive 2106 | . . 2106 Electromagnetic . | . . . Impact 69 | . . 69 Slashing . | . . . Piercing . | . . . Highest Corruption 2 | . 1 2 Average Corruption 1 | . 1 1 Corruption Purged . | . . . Effects 6 | . 1 5 Message Errors 1 | . . 1 Heat Flow Errors 1 | . . 1 Data Loss (minor) 2 | . . 2 Targeting Errors 2 | . 1 1 Overload Shots . | . . . Overflow Damage 46 | . . 46 Projectiles . | . . . Explosions 17 | . . 17 Melee 29 | . . 29 Knockbacks 1 | . . 1 Impact 1 | . . 1 Kinetic . | . . . Secondary . | . . . Self-Inflicted Damage 38 | . . 38 Shots 2 | . . 2 Rammed 1 | . . 1 Targets Rammed 1 | . . 1 Kicked . | . . . Crushed . | . . . Highest Temperature 228 | . . 228 Average Temperature 76 | . . 76 Received Heat Transfer 246 | . 48 198 Siege Activations . | . . . Robots Corrupted . | . . . Combat Hostiles . | . . . Parts Fried 2 | . . 2 Impact Corruptions 1 | . . 1 Robots Melted 1 | . 1 . Combat Hostiles . | . . . Parts Melted . | . . . Heat Transferred 489 | . 489 . Parts Sabotaged . | . . . Parts Stolen . | . . . Parts Stripped . | . . . Power Chain Reactions . | . . . Missiles Intercepted . | . . . Alert | -11 -10 -9 ------- Run | Scr Mat Mat Peak Influence 80 | . 67 80 Initial 5 | . . 5 Average 18 | . 33 23 Maximum Alert Level . | . . . Low Security (%) 100 | 100 100 100 Level 1 . | . . . Level 2 . | . . . Level 3 . | . . . Level 4 . | . . . Level 5 . | . . . High Security . | . . . Max Security . | . . . Squads Dispatched 12 | . 3 9 Investigation 4 | . 2 2 Extermination . | . . . Reinforcement 2 | . 1 1 Assault 6 | . . 6 Garrison . | . . . Intercept . | . . . Construction Impeded . | . . . Haulers Reinforced . | . . . Stealth | -11 -10 -9 --------- Run | Scr Mat Mat Distress Signals 15 | . . 15 Communications Jammed . | . . . Distress Signals . | . . . Times Spotted 38 | . 14 24 Peak Tracking Total 5 | . 5 4 Tactical Retreats 10 | . 4 6 Traps | -11 -10 -9 ------- Run | Scr Mat Mat Traps Triggered . | . . . Indirectly . | . . . Trap Hack Attempts . | . . . Triggered . | . . . Disarmed . | . . . Reprogrammed . | . . . Reused . | . . . Traps Extracted . | . . . Installed . | . . . Triggered . | . . . Machines | -11 -10 -9 ---------- Run | Scr Mat Mat Machines Disabled 4 | . . 4 Max in Single Turn 1 | . . 1 Machines Sabotaged . | . . . Garrisons Compromised . | . . . Overloaded Fab Kills . | . . . Fab Network Shutdowns . | . . . Hacking | -11 -10 -9 --------- Run | Scr Mat Mat Machines Accessed 7 | . 4 3 Terminals 5 | . 2 3 Fabricators . | . . . Repair Stations 1 | . 1 . Recycling Units 1 | . 1 . Scanalyzers . | . . . Garrison Access . | . . . Total Hacks 20 | . 10 10 Successful 13 | . 7 6 Failed 7 | . 3 4 Catastrophic . | . . . Database Lockouts . | . . . Manual 5 | . 3 2 Terminals 18 | . 8 10 Fabricators . | . . . Repair Stations 1 | . 1 . Recycling Units 1 | . 1 . Scanalyzers . | . . . Garrison Access . | . . . Terminal Hacks 11 | . 5 6 Prototype ID Bank 2 | . 1 1 Terminal Index 3 | . 1 2 Locate Traps 1 | . . 1 Dispatch Records 2 | . 1 1 Hauler Manifests 1 | . . 1 Zone Layout 2 | . 2 . Fabricator Hacks . | . . . Repair Station Hacks 1 | . 1 . Refit 1 | . 1 . Recycling Unit Hacks . | . . . Scanalyzer . | . . . Garrison Access Hacks . | . . . Unauthorized Hacks 1 | . 1 . Terminals . | . . . Fabricators . | . . . Repair Stations . | . . . Recycling Units 1 | . 1 . Tunnel 1 | . 1 . Scanalyzers . | . . . Garrison Access . | . . . Data Cores Recovered . | . . . Used . | . . . Hacking Detections 5 | . 2 3 Full Trace Events 4 | . 1 3 Feedback Events 1 | . 1 . Corruption 1 | . 1 . Feedback Blocked . | . . . Robot Schematics Acquired . | . . . Robots Built . | . . . Matter . | . . . Time . | . . . Total Robot Build Rating . | . . . Part Schematics Acquired . | . . . Parts Built . | . . . Matter . | . . . Time . | . . . Total Part Build Rating . | . . . Parts Repaired . | . . . Time . | . . . Parts Recycled . | . . . Recycled Matter . | . . . Retrieved Matter . | . . . Retrieved Components . | . . . Parts Scanalyzed . | . . . Part Schematics Acquired . | . . . Parts Damaged . | . . . Bothacking | -11 -10 -9 ------------ Run | Scr Mat Mat Used RIF Installer . | . . . Robots Hacked . | . . . Non-combat . | . . . Combat . | . . . Robot Hacks Applied . | . . . Relay Couplers Released . | . . . Robots Rewired . | . . . Allies Hacked . | . . . Hacks Repelled . | . . . Allies | -11 -10 -9 -------- Run | Scr Mat Mat Total Allies . | . . . Largest Group . | . . . Highest-Rated Group . | . . . Highest-Rated Ally . | . . . Total Orders . | . . . Ally Attacks . | . . . Total Damage . | . . . Kills . | . . . Allies Corrupted . | . . . Allies Melted . | . . . Intel | -11 -10 -9 ------- Run | Scr Mat Mat Robot Analysis Total . | . . . Derelict Logs Recovered . | . . . Drone Launches . | . . . Drone Recoveries . | . . . Exploration | -11 -10 -9 ------------- Run | Scr Mat Mat Turns Passed 1647 | 561 488 598 Spaces Moved 838 | 23 470 345 Core 139 | 23 51 65 Treads . | . . . Legs . | . . . Wheels . | . . . Hover 656 | . 376 280 Flight 43 | . 43 . Fastest Speed 40 | 50 40 80 Average Speed 94 | 50 70 128 Slowest Speed 200 | 50 160 200 Overloaded Moves . | . . . Propulsion Burnouts . | . . . Robots Hopped 1 | . 1 . Cave-ins Triggered . | . . . Exploration Rate (%) 33 | 10 56 34 Regions Visited 2 Branch Regions . Pre-discovered Areas 1 | . 1 . Known Exits Taken 1 | . 1 . Unknown Exits Taken 1 | 1 . . Scrap Searched . | . . . Spaces Dug 9 | . 8 1 Terrain Destroyed 195 | . 8 187 Melee 9 | . 8 1 Projectile . | . . . AOE 186 | . . 186 Terrain Rammed . | . . . Walls Destroyed . | . . . Machines Disabled . | . . . Actions | -11 -10 -9 --------- Run | Scr Mat Mat Total 1560 | 571 561 428 Wait 643 | 547 41 55 Move 833 | 22 467 344 Hop 1 | . 1 . Pick Up 9 | 2 5 2 Fast Attach 3 | . 1 2 Attach 5 | . 4 1 Detach . | . . . Swap 2 | . 2 . Drop 3 | . 3 . Fire 35 | . 14 21 Melee 25 | . 23 2 Ram 1 | . . 1 Kick . | . . . Crush . | . . . Escape Stasis . | . . . Rewire . | . . . Trap . | . . . Miscellaneous . | . . . Route ------- -11/Scrapyard -10/Materials -9/Materials History --------- Turn | Location | Event 553 | -11/Scrapyard | Discovered new exit (range 16) 562 | -11/Scrapyard | Entered Materials 563 | -10/Materials | Build established: Mutant 1039 | -10/Materials | Discovered new exit (range 13) 1049 | -10/Materials | Identified exit to Materials 1050 | -10/Materials | Entered another Materials area 1050 | -9/Materials | Evolved 2 slots: Propulsion x1, Weapon x1 1386 | -9/Materials | Discovered new exit (range 11) 1591 | -9/Materials | Identified exit to Mines 1604 | -9/Materials | Core integrity fell below 50% 1622 | -9/Materials | Core integrity fell below 20% 1632 | -9/Materials | Lost 4 parts (1n1u2w) 1648 | -9/Materials | Destroyed by Lesser Abomination with EMP Blaster Last Messages --------------- 01580_ Lgt. Ion Engine springs to life within a quantum being. 01581_ ALERT: Dispatching additional forces to engage threats. 01582_ Lesser Abomination destroyed. 01583_ Rocket Launcher destroyed. 01584_ The unstable cave ceiling collapses. 01586_ Rocket Launcher destroyed. 01588_ The unstable cave ceiling collapses. 01591_ EXIT=IDENTIFIED: MINES (Blocked) 01592_ Acquired 61 matter. 01595_ Lesser Abomination misfires. 01599_ 64 Matter blinks away. 01601_ Sensor Array destroyed. 01602_ Warp Anomaly forced to warp away. 01616_ Disintegrating Anomaly forced to warp away. 01616_ 58 Matter blinks away. 01618_ Lesser Abomination spits out Wheel. 01618_ Lesser Abomination feeds off Hungry Anomaly, taking Wheel. 01619_ Hungry Anomaly eats Wheel. 01632_ ALERT: Dispatching additional forces to engage threats. 01639_ System corrupted: Heat flow error (+256). Map ----- +----------------------------------------------------+ | " " " #!# #?? | | ########### " """ " # ###?? | | # # " "" " # # #?? | | % # # / """ " " # #?? | | ?# ###" #""""# "" " " ###?? | | ???+ " / " # """ " " ##? | | ???# % ###""+##"## # """ " " ##? | | ???# # # # """ " " ##? | | ???# " # """ # # " " " ### | | ???# #""""" ### " " # # | | ???? " #""""" ### " " # | | ????? " #""""" ###""#""" " # # | | ????? # """ ##?### ## " # ? | | ??????? # #????####"""" """ "## | | ??????????# #????########"" " "## | | ??????????###########????# ## " "## | | ?????????????#######?????# #? " "#? | | ?????????????????????????# #? " "#? | | ?????????????????????????# ### " "#? | | ?????????????????????????# ## "" "#? | | ?????????????????????????# " " #? | | ?????????????################+####"" "# | | ?????????????# % A " "# | | ?????????????# % # " "# | | ?????????????# # " "# | | ?????????????# @ # """ """# | | ?????????????#### % #### # # " " #? | | ????????????????## ; ## " " " " #? | | ????????????????# ; "# " # " " #? | | ????????????????## # " " " "??? | | ???????????????##; ; """"# " " " " ?? | | ????????????#### ;;; ; """"" ""#### " "??? | | ????????????# ; ; """"" " #??? " #??? | | ????????????# ;%; "" " #????" #??? | | ????????????#= "%; ""####"" " #????# #??? | | ????????????# %T ; " #??? " " #????# #??? | | ????????????# "A; "##??? " " #????# #??? | | ????????????# ; ##???? " " #????# #??? | | ?????????###"%" "";" #??????# ####???# #??? | | ?????????# # ######## ##"##### #??? | | ?????????# % + ^ #??? | | ?????????# #![=###########+########+###? | | ?????????# ## ####%###### ?????# #? | | ?????????# ??# ## # ""?????# [ #? | | ?????????# ??# ## ] # "R ????# [ #? | | ?????????# ]???# ## ] # """????#] #? | | ?????????####+## ## ] # ???# #? | | ????????????# ## # ???# #? | | ????????????# + """ #######??# #? | | ????????????#### ## """ #????????# #? | +----------------------------------------------------+ Best States ------------- Heat Dissipation 28 Energy Generation 10 Energy Capacity 125 Matter Stores 300 Matter Capacity 300 Sight Range 16 Robot Scan Range 10 Terrain Scan Density 10 Evasion (%) 62 Item Schematics ----------------- None Robot Schematics ------------------ None Fabricated ------------ Nothing Alien Tech Used ----------------- None Achievements -------------- None Challenges ------------ None Game ------ Seed RegenerativeShockMallet Manual? 0 Play Time 00:17:57 Cumulative 51.6 hours Start 2020.09.23 @ 21:20:38 End 2020.09.23 @ 21:37:00 Sessions 1 Manual Loads 0 Difficulty Rogue Special Mode Halloween2019/Abominations Game No. 59 Rogue 36 Adventurer 22 Explorer 1 Win Type - Total 1 Types 1/0/0/0/0/0/0/0/0 Lore% 25 Gallery% 38 Achievement% 31 Wizard Run 0 Options --------- ASCII 0 Keyboard 0 Movement Numpad Keybinds 0 Fullscreen 1 Font 14/SmallcapsGlow Map View 84x54 Tactical HUD 1 Map Filters NONE Filters NONE Steam 1 RUN: c314bd72-1f08-4b91-876f-ecc351ee2922